bitfinex-derivatives/quotes_ETHF0:USTF0_20260208
["timestamp","ask_amount","ask_price","bid_price","bid_amount"]
[1770527225562,10.36413273,2083.6,2083.0,10.27150595]
[1770527226356,10.36804325,2083.6,2083.0,10.27150595]
[1770527229169,6.63749874,2083.9,2083.0,10.27150595]
[1770527229170,10.00909535,2083.9,2083.5,10.00414703]
[1770527229763,10.00909535,2083.9,2083.4,10.00414703]
[1770527229963,10.00909535,2083.9,2083.3,2.8607095]
[1770527229964,10.93215945,2083.9,2083.3,2.8607095]
[1770527230168,10.93724289,2083.9,2083.2,7.08209867]
[1770527230369,10.93724289,2083.9,2083.3,4.47260697]
[1770527230568,10.93724289,2083.9,2083.2,12.86485653]
[1770527230769,10.93724289,2083.9,2083.2,10.00414703]
[1770527235483,10.40806738,2083.9,2083.5,10.85115588]
[1770527235682,11.32703675,2083.9,2083.2,3.894]
[1770527236281,11.32703675,2083.9,2083.1,13.71186538]
[1770527236882,10.40298394,2083.6,2083.0,10.85115588]
[1770527237382,10.40298394,2083.4,2082.6,13.71186538]
[1770527237582,10.40298394,2083.2,2082.6,10.85115588]
[1770527238285,10.40298394,2083.2,2082.4,13.71633967]
[1770527238483,10.40298394,2083.2,2082.5,10.85115588]
[1770527238879,10.40298394,2083.0,2082.4,13.71633967]
[1770527239082,10.40298394,2083.0,2082.4,10.85563017]
[1770527242386,10.40298394,2083.0,2082.4,0.00447429]
[1770527242689,10.40298394,2083.0,2082.2,2.8607095]
[1770527242690,10.40298394,2082.8,2082.2,10.85115588]
[1770527243786,10.40298394,2082.8,2082.2,10.85569362]
[1770527243985,10.40298394,2083.2,2082.5,10.85115588]
[1770527245985,10.40298394,2083.2,2082.7,10.85115588]
[1770527246383,10.40298394,2083.6,2082.7,10.85115588]
[1770527246686,10.40298394,2083.6,2083.1,10.85115588]
[1770527246989,10.40298394,2083.4,2082.8,10.85115588]
[1770527247588,10.40298394,2083.4,2082.7,2.8607095]
[1770527247791,10.40298394,2083.4,2082.6,10.85115588]
[1770527251694,10.40298394,2083.4,2082.7,10.85115588]
[1770527255094,10.40298394,2083.4,2082.7,3.894]
[1770527258098,10.40298394,2083.4,2082.3,13.46813496]
[1770527258299,10.40298394,2083.4,2082.4,10.60742546]
[1770527265305,10.43859261,2083.3,2082.4,10.60742546]
[1770527267200,10.43859261,2083.3,2082.4,13.46926097]
[1770527267400,10.43859261,2083.3,2082.5,10.60742546]
[1770527277209,16.15302725,2083.3,2082.5,10.60742546]
[1770527277412,10.43859261,2083.2,2082.5,10.60742546]
[1770527280809,10.43859261,2083.2,2082.4,13.46926097]
[1770527281409,10.43859261,2083.2,2082.5,4.49166583]
[1770527281613,10.43859261,2083.2,2082.4,13.46926097]
[1770527282209,10.43859261,2083.2,2082.5,4.49228329]
[1770527283008,10.43859261,2083.2,2082.4,13.46926097]
[1770527283209,10.43859261,2083.2,2082.5,4.49375902]
[1770527283810,10.43859261,2083.2,2082.4,13.46926097]
[1770527284206,10.43859261,2083.1,2082.5,4.4960428]
[1770527285411,10.43859261,2083.1,2082.5,15.10346826]
[1770527285611,10.43859261,2083.1,2082.5,10.60742546]
[1770527285912,10.43859261,2083.1,2082.6,9.78180476]
[1770527286113,9.86760815,2083.2,2082.6,9.78180476]
[1770527286902,5.71443464,2083.3,2082.6,9.78180476]
[1770527287508,15.58204279,2083.3,2082.6,9.78180476]
[1770527288814,5.71443464,2083.3,2082.6,9.78180476]
[1770527289210,15.58204279,2083.3,2082.6,9.78180476]
[1770527290214,5.71443464,2083.4,2082.8,9.78180476]
[1770527290510,15.58204279,2083.5,2082.8,9.78180476]
[1770527291316,9.86760815,2083.5,2082.8,9.78180476]
[1770527297815,15.40659067,2083.6,2082.8,9.78180476]
[1770527298112,9.69215603,2083.5,2082.8,9.78180476]
[1770527299514,9.69215603,2083.6,2082.8,9.78180476]
[1770527299921,9.69215603,2083.6,2082.9,9.90876932]
[1770527300623,9.69215603,2083.8,2083.1,9.90876932]
[1770527306123,0.00098871,2083.9,2083.1,9.90876932]
[1770527306325,0.00098871,2083.9,2083.2,9.90876932]
[1770527307431,9.69314474,2083.9,2083.2,9.90876932]
[1770527307723,9.69215603,2084.3,2083.6,9.90876932]
[1770527308725,9.69632569,2084.3,2083.6,9.90876932]
[1770527309224,17.44033549,2084.9,2083.7,9.90876932]
[1770527309225,9.69215603,2084.7,2083.7,9.90876932]
[1770527310228,9.69775001,2084.7,2083.7,9.91280716]
[1770527311323,0.00559398,2084.7,2083.7,9.91280716]
[1770527311529,0.00559398,2084.7,2084.0,9.90876932]
[1770527311731,9.69215603,2085.0,2084.1,9.90876932]
[1770527311922,9.69215603,2085.2,2084.1,9.90876932]
[1770527312122,9.69215603,2085.2,2084.3,9.90876932]
[1770527312524,9.69215603,2085.6,2084.4,6.28789684]
[1770527312726,9.69815749,2085.6,2084.5,9.90876932]
[1770527328843,9.69815749,2085.6,2084.1,2.561]
[1770527329047,9.69815749,2085.6,2084.2,10.361045]
[1770527329443,9.93807749,2085.6,2084.2,10.361045]
[1770527335354,9.93807749,2085.6,2084.3,10.361045]
[1770527337353,9.95499502,2085.5,2084.4,10.361045]
[1770527339360,9.95499502,2085.4,2084.5,10.361045]
[1770527340964,9.95499502,2085.2,2084.1,13.23195779]
[1770527341160,9.95499502,2085.1,2084.1,10.361045]
[1770527351067,9.27373068,2085.0,2084.1,10.361045]
[1770527356875,9.27373068,2085.0,2084.2,9.68607983]
[1770527358179,9.27373068,2085.0,2084.1,2.87091279]
[1770527358380,9.27373068,2085.0,2084.2,9.68607983]
[1770527358581,9.92241256,2084.9,2084.2,9.68607983]
[1770527364281,9.92241256,2084.8,2084.2,9.68607983]
[1770527366383,5.72364238,2084.9,2084.2,9.68607983]
[1770527366587,15.64605494,2085.0,2084.2,9.68607983]
[1770527366786,9.92241256,2084.9,2084.2,9.68607983]
[1770527368576,9.92241256,2085.0,2084.3,9.68607983]
[1770527368975,9.92241256,2085.0,2084.4,9.68607983]
[1770527369680,5.72364238,2085.1,2084.4,9.68607983]
[1770527369875,15.64605494,2085.2,2084.5,9.68607983]
[1770527370084,15.64605494,2085.3,2084.6,9.68607983]
[1770527370486,9.92241256,2085.3,2084.6,9.68607983]
[1770527379583,5.72964384,2085.6,2084.9,9.18350961]
[1770527379584,0.00600146,2085.6,2084.9,9.18350961]
[1770527379783,9.80651238,2085.6,2084.9,9.18350961]
[1770527379993,9.80651238,2085.6,2084.8,12.05067368]
[1770527380194,9.80651238,2085.6,2084.8,9.18350961]
[1770527384399,9.80651238,2085.6,2084.6,9.18350961]
[1770527384599,9.80051092,2085.5,2084.5,9.18350961]
[1770527388703,10.04044092,2085.5,2084.5,9.18350961]
[1770527388905,9.80051092,2085.3,2084.5,9.18350961]
[1770527395305,15.5241533,2085.3,2084.5,9.18350961]
[1770527395510,9.80051092,2085.2,2084.5,9.18350961]
[1770527401996,9.80051092,2085.2,2084.4,9.18350961]
[1770527403508,9.80051092,2085.2,2084.3,9.18350961]
[1770527403509,9.80051092,2085.1,2084.3,9.18350961]
[1770527403710,9.80051092,2085.0,2084.3,9.18350961]
[1770527410206,5.72364238,2085.1,2084.3,9.18350961]
[1770527410407,9.10625605,2085.4,2084.6,9.2366807]
[1770527410609,9.10625605,2085.5,2084.7,9.2366807]
[1770527412311,9.11225751,2085.6,2084.7,9.2366807]
[1770527412514,0.00600146,2085.6,2084.9,9.2366807]
[1770527415717,0.00600146,2085.6,2085.1,9.78904602]
[1770527415912,9.33150081,2085.9,2085.1,9.78904602]
[1770527416915,9.33644551,2085.9,2085.1,9.78904602]
[1770527419516,9.33644551,2085.9,2084.9,9.78904602]
[1770527423119,9.33644551,2085.9,2085.0,9.78904602]
[1770527424631,0.0049447,2085.9,2085.0,9.78904602]
[1770527426723,9.33644551,2085.9,2085.0,9.78904602]
[1770527430319,0.0049447,2085.9,2085.0,9.78904602]
[1770527430920,9.33150081,2086.1,2085.0,9.78904602]
[1770527430921,9.33150081,2086.2,2085.2,9.78904602]
[1770527431119,9.33150081,2086.5,2085.3,9.78904602]
[1770527431920,9.33757918,2086.5,2085.3,9.79396832]
[1770527439328,9.12630451,2086.4,2085.4,9.23444265]
[1770527443133,9.12630451,2086.3,2085.4,9.23444265]
[1770527443531,9.12630451,2086.1,2085.4,9.23444265]
[1770527448630,14.84994689,2086.3,2085.4,9.23444265]
[1770527448836,9.12630451,2086.3,2085.5,9.23444265]
[1770527452129,9.12630451,2086.3,2085.3,4.26859827]
[1770527452335,9.12630451,2086.3,2084.7,10.50042909]
[1770527452336,9.12630451,2085.4,2084.9,9.23444265]
[1770527452631,9.12630451,2085.3,2084.2,5.71783436]
[1770527452834,9.12630451,2085.1,2084.4,9.23444265]
[1770527453334,9.12630451,2085.1,2084.4,9.24064375]
[1770527453732,9.12630451,2085.0,2084.4,9.24064375]
[1770527453936,9.12630451,2084.8,2084.2,8.29708717]
[1770527454237,9.12630451,2084.7,2084.2,8.29708717]
[1770527454939,9.12630451,2084.7,2084.2,8.30238437]
[1770527455142,9.12630451,2084.8,2084.2,8.30238437]
[1770527457443,0.00357907,2085.0,2084.2,8.30238437]
[1770527459839,9.12988358,2085.0,2084.2,8.30238437]
[1770527478145,11.98698264,2085.0,2084.2,8.30238437]
[1770527478351,9.62432751,2084.9,2084.2,8.30238437]
[1770527481244,9.62432751,2084.8,2084.2,8.30238437]
[1770527482149,12.48142657,2084.8,2084.2,8.30238437]
[1770527483749,9.62432751,2084.7,2084.2,8.30238437]
[1770527484154,12.48142657,2084.7,2084.2,8.30238437]
[1770527484543,9.62432751,2084.7,2084.2,8.30238437]
[1770527489561,2.85709906,2084.9,2084.2,8.30238437]
[1770527489858,9.62432751,2084.8,2084.2,8.30238437]
[1770527490558,9.62432751,2084.7,2084.2,8.30238437]
[1770527491857,9.62432751,2084.7,2084.2,5.71482631]
[1770527494470,11.70128675,2084.7,2084.2,5.71482631]
[1770527496772,11.72270309,2084.7,2084.2,5.71482631]
[1770527500073,8.84418769,2084.7,2084.2,5.71482631]
[1770527501575,8.84418769,2084.7,2084.2,0.0052972]
[1770527502173,51.96002993,2084.7,2084.2,0.0052972]
[1770527502375,9.45200852,2084.6,2084.2,0.0052972]
[1770527504577,8.67182879,2084.6,2084.2,0.0052972]
[1770527510170,48.83948462,2084.8,2084.2,0.0052972]
[1770527510171,5.72364238,2084.8,2084.3,9.88071283]
[1770527510373,45.98575004,2085.2,2084.6,4.30446832]
[1770527510572,45.98575004,2085.2,2084.4,10.02230268]
[1770527510773,45.98575004,2085.2,2084.2,0.0052972]
[1770527511277,45.98965979,2085.2,2084.4,4.30446832]
[1770527511575,45.98965979,2085.2,2084.3,11.02835989]
[1770527511576,45.98965979,2085.2,2084.3,4.30837468]
[1770527512277,45.98965979,2085.2,2084.4,9.88071283]
[1770527512576,9.45200852,2085.1,2084.4,12.75304718]
[1770527513476,9.45200852,2085.1,2084.5,2.87233435]
[1770527514473,9.45200852,2085.1,2084.6,2.87233435]
[1770527514673,9.45200852,2084.9,2084.6,2.87233435]
[1770527515474,55.43775856,2084.8,2084.6,2.87233435]
[1770527515677,5.85167226,2084.8,2084.6,2.87233435]
[1770527515873,9.45200852,2084.6,2084.4,2.87161606]
[1770527516177,8.50800852,2084.6,2084.2,0.0052972]
[1770527516378,0.00390975,2085.2,2084.2,0.0052972]
[1770527516379,9.45200852,2084.4,2084.2,0.0052972]
[1770527518979,9.45200852,2084.9,2084.2,9.88601003]
[1770527519177,9.45200852,2084.8,2084.2,9.88601003]
[1770527520281,10.23290975,2085.2,2084.2,9.88601003]
[1770527520486,45.20578597,2085.2,2084.7,9.88071283]
[1770527520685,45.20578597,2085.2,2084.8,9.88071283]
[1770527520883,9.45200852,2085.9,2084.8,9.88071283]
[1770527521083,9.45200852,2085.7,2084.9,5.74316066]
[1770527521379,9.45730921,2085.7,2085.0,9.88071283]
[1770527521586,0.00530069,2085.7,2085.0,9.88071283]
[1770527521777,9.45200852,2086.1,2085.0,9.88071283]
[1770527521979,9.45200852,2086.0,2085.2,9.88071283]
[1770527522182,54.65779449,2086.0,2085.2,9.88071283]
[1770527522885,54.66307901,2086.0,2085.2,9.88071283]
[1770527523479,54.66307901,2086.0,2085.3,4.67195114]
[1770527523686,54.66307901,2086.0,2085.4,9.88071283]
[1770527524089,9.45200852,2085.9,2085.1,9.88071283]
[1770527524388,9.45200852,2085.9,2085.3,9.88071283]
[1770527525982,10.60254728,2085.7,2084.9,10.6125572]
[1770527526182,10.60254728,2085.7,2085.1,10.6125572]
[1770527528584,10.60254728,2085.5,2085.1,10.6125572]
[1770527528982,55.80833325,2085.5,2085.1,10.6125572]
[1770527530084,0.00528452,2086.0,2085.1,10.6125572]
[1770527530085,10.60254728,2085.7,2085.1,10.6125572]
[1770527530289,10.60254728,2085.9,2085.1,10.6125572]
[1770527530486,55.80833325,2085.9,2085.1,10.6125572]
[1770527530683,10.60254728,2085.8,2085.1,10.6125572]
[1770527531794,10.60254728,2085.6,2084.7,10.6125572]
[1770527531985,10.60254728,2085.6,2084.9,10.6125572]
[1770527534489,45.20578597,2085.5,2084.7,11.32805049]
[1770527534695,10.63960856,2085.4,2084.7,11.32805049]
[1770527535793,55.84539453,2085.3,2084.7,11.32805049]
[1770527536090,10.63960856,2085.8,2084.7,11.32805049]
[1770527536690,0.00528452,2086.0,2084.7,11.32805049]
[1770527536691,10.63960856,2085.6,2084.7,11.32805049]
[1770527536997,10.63960856,2085.8,2084.9,11.32805049]
[1770527537184,45.20578597,2085.9,2085.1,11.32805049]
[1770527537185,55.61886053,2085.9,2085.1,11.32805049]
[1770527537388,55.61886053,2085.9,2085.3,11.32805049]
[1770527537997,44.97925197,2085.9,2085.3,11.32805049]
[1770527541592,55.61886053,2085.9,2085.3,11.32805049]
[1770527541794,10.63960856,2085.8,2085.3,11.32805049]
[1770527541998,44.97925197,2085.9,2085.3,11.32805049]
[1770527542598,10.63960856,2085.8,2085.3,11.32805049]
[1770527543999,55.61886053,2085.7,2085.3,11.32805049]
[1770527544195,10.63960856,2085.6,2085.1,4.26997634]
[1770527544397,10.63960856,2085.5,2085.1,9.0942811]
[1770527544792,10.63960856,2085.3,2085.0,15.59802683]
[1770527545001,10.63960856,2085.3,2085.1,4.81807141]
[1770527545203,9.85983188,2085.3,2085.1,4.81807141]
[1770527545601,10.63960856,2085.7,2085.2,11.32805049]
[1770527545803,10.63960856,2085.6,2085.2,11.32805049]
[1770527546700,10.63960856,2085.6,2085.0,4.26997634]
[1770527546701,10.63960856,2085.6,2085.1,11.32805049]
[1770527546892,22.52030617,2085.5,2085.1,11.32805049]
[1770527547092,2.686,2087.7,2084.3,10.50042909]
[1770527547093,11.63714423,2086.3,2085.3,8.62319053]
[1770527547291,21.93465819,2087.5,2085.8,4.27820435]
[1770527547496,11.63714423,2087.4,2085.8,9.055163]
[1770527548204,21.69495819,2087.3,2085.9,4.77695865]
[1770527548503,11.63714424,2087.2,2085.9,4.77695865]
[1770527549096,11.63714424,2087.2,2085.8,9.05997697]
[1770527549306,11.63714424,2087.0,2085.9,9.0594874]
[1770527549607,11.63714424,2087.0,2086.0,4.78128305]
[1770527550198,11.63714424,2087.0,2085.9,1.11740398]
[1770527550399,11.07844224,2086.8,2085.9,5.89722571]
[1770527552207,11.12572551,2086.6,2085.9,5.89722571]
[1770527552405,11.12572551,2086.6,2085.8,5.30585577]
[1770527552602,0.00528915,2087.4,2085.8,10.06708458]
[1770527552603,11.12572551,2086.4,2085.8,10.06708458]
[1770527554711,11.30325993,2087.0,2086.2,4.27820435]
[1770527554904,11.30325993,2087.0,2086.2,9.03943316]
[1770527555304,21.02718959,2086.9,2086.3,9.03943316]
[1770527555705,21.02718959,2086.9,2086.2,5.70427247]
[1770527555706,11.64243338,2087.4,2086.5,4.27820435]
[1770527556008,11.63714423,2087.2,2086.6,9.03943316]
[1770527556307,11.63714423,2087.2,2086.7,4.76122881]
[1770527556503,21.02718959,2087.2,2086.7,4.27820435]
[1770527557012,0.00528915,2087.4,2086.8,4.27820435]
[1770527557310,21.03247874,2087.4,2086.8,4.72766368]
[1770527557509,32.6698664,2087.4,2086.9,4.72766368]
[1770527557710,32.6698664,2087.4,2086.7,4.27820435]
[1770527558412,11.63738766,2087.3,2086.7,4.27820435]
[1770527559213,11.63738766,2087.3,2086.8,4.72174527]
[1770527559511,11.63738766,2087.3,2086.6,4.58357583]
[1770527559712,11.63738766,2087.1,2086.6,4.27820435]
[1770527560010,11.63738766,2087.1,2086.7,0.02866995]
[1770527561302,21.02718959,2087.0,2086.7,0.02866995]
[1770527561911,11.63738766,2087.1,2086.7,0.02866995]
[1770527562215,32.66457725,2087.1,2086.7,0.02866995]
[1770527562716,11.63738766,2087.0,2086.4,4.27820435]
[1770527563213,11.63738766,2086.8,2086.4,4.58794206]
[1770527563414,11.41203081,2086.8,2086.4,4.9191069]
[1770527563616,31.98780452,2086.8,2086.4,0.47077027]
[1770527563917,31.30960493,2086.8,2086.4,0.47077027]
[1770527564119,30.8569788,2086.8,2086.4,0.16103256]
[1770527564319,30.49445469,2086.8,2086.4,4.77041642]
[1770527564520,29.95015575,2086.8,2086.4,0.16103256]
[1770527564723,29.95015575,2086.8,2086.4,4.77088245]
[1770527564912,29.95015575,2086.8,2086.4,0.16103256]
[1770527565221,29.76856783,2086.8,2086.4,0.16103256]
[1770527565623,29.40551172,2086.8,2086.4,0.16103256]
[1770527565823,10.84156732,2086.7,2086.4,0.16103256]
[1770527566023,10.84156732,2086.7,2086.4,0.4717853]
[1770527566223,10.84156732,2086.7,2086.4,0.31075274]
[1770527566427,10.84156732,2086.7,2086.4,4.60988352]
[1770527566625,31.86875691,2086.6,2086.2,7.3453517]
[1770527566826,10.84156732,2086.6,2086.2,3.06714735]
[1770527567026,21.02718959,2086.5,2086.2,3.06714735]
[1770527567723,0.00528915,2087.4,2086.2,3.36980017]
[1770527567724,10.84156732,2087.3,2086.2,3.36980017]
[1770527567925,10.84156732,2086.8,2086.2,3.36980017]
[1770527568324,21.02718959,2086.7,2086.2,3.36980017]
[1770527570630,21.02718959,2086.7,2086.4,2.60326457]
[1770527571833,17.95622146,2086.7,2086.4,2.60326457]
[1770527572033,10.84156732,2087.0,2086.4,7.22144438]
[1770527572331,26.89540002,2086.9,2086.3,4.27820435]
[1770527572529,11.63738766,2086.9,2086.4,3.894]
[1770527572831,26.89540002,2086.8,2086.4,3.894]
[1770527573033,11.63738766,2086.8,2086.4,3.894]
[1770527573328,11.63738766,2086.8,2086.5,4.62100406]
[1770527573528,11.63738766,2087.1,2086.5,4.62100406]
[1770527574233,11.63738766,2087.1,2086.4,8.17220435]
[1770527574434,11.63738766,2086.9,2086.5,4.62352855]
[1770527575933,11.63738766,2086.7,2086.5,4.62352855]
[1770527576234,8.04118496,2086.7,2086.6,2.84350011]
[1770527576734,10.84156732,2087.1,2086.6,4.62352855]
[1770527576934,10.84156732,2087.1,2086.6,3.894]
[1770527577135,10.84156732,2087.1,2086.6,11.31400239]
[1770527577336,10.84156732,2087.1,2086.6,6.73750011]
[1770527577929,10.84156732,2086.9,2086.6,6.73750011]
[1770527578431,0.00528915,2087.4,2086.5,4.27820435]
[1770527578432,10.84156732,2086.7,2086.5,2.84350011]
[1770527578630,10.84156732,2086.7,2086.4,2.84350011]
[1770527578831,26.09957968,2086.6,2086.4,2.84350011]
[1770527579031,10.84156732,2086.6,2086.4,2.84350011]
[1770527579239,26.09957968,2086.6,2086.3,7.85521368]
[1770527579434,10.84156732,2086.5,2086.3,4.27820435]
[1770527579632,10.84156732,2086.5,2086.2,0.30265282]
[1770527579833,15.25801236,2086.4,2086.1,13.86122337]
[1770527580033,15.25801236,2086.4,2086.2,8.10965506]
[1770527580232,19.0655608,2086.4,2086.1,13.81392753]
[1770527580637,8.22399348,2086.4,2086.2,8.10965506]
[1770527581837,8.22399348,2086.4,2086.2,8.41077129]
[1770527582039,8.22399348,2086.4,2086.2,0.30111623]
[1770527582246,10.84156732,2086.3,2086.2,3.894]
[1770527582439,10.84156732,2086.3,2085.8,7.96643933]
[1770527582641,10.84156732,2086.1,2085.8,10.15943933]
[1770527582937,10.84156732,2087.0,2085.9,10.65839125]
[1770527583141,10.84156732,2086.2,2085.9,10.65839125]
[1770527585349,10.84156732,2086.2,2085.8,12.85620522]
[1770527585552,8.22399348,2086.1,2085.8,13.16303143]
[1770527585855,18.93554172,2086.1,2085.8,13.16303143]
[1770527586044,18.93554172,2086.1,2085.8,2.50464018]
[1770527586538,18.93554172,2086.1,2085.8,13.53378706]
[1770527587451,10.71154824,2086.0,2085.8,2.50464018]
[1770527587745,8.22399348,2086.1,2085.8,2.50464018]
[1770527588050,10.71154824,2086.0,2085.8,2.50464018]
[1770527588252,10.71154824,2086.0,2085.5,16.73341935]
[1770527588439,18.93554172,2085.9,2085.6,11.02914688]
[1770527588639,10.71154824,2085.9,2085.6,11.02914688]
[1770527588843,8.22399348,2085.8,2085.6,11.02914688]
[1770527589243,18.94163112,2085.8,2085.6,0.00386152]
[1770527589847,8.23008288,2085.8,2085.6,0.00386152]
[1770527590148,8.23008288,2085.8,2085.6,11.0330084]
[1770527590351,0.0060894,2085.8,2085.6,11.0330084]
[1770527590548,10.71154824,2086.1,2085.6,11.0330084]
[1770527590849,10.71154824,2085.9,2085.6,11.0330084]
[1770527591552,10.71495241,2085.9,2085.6,11.0330084]
[1770527592045,10.71495241,2085.9,2085.6,11.33728956]
[1770527593152,10.71495241,2085.9,2085.6,11.05183612]
[1770527594341,0.00340417,2085.9,2085.6,11.05183612]
[1770527594547,11.1920375,2086.3,2085.6,11.05183612]
[1770527595553,11.19700535,2086.3,2085.6,11.05183612]
[1770527602255,0.00496785,2086.3,2085.6,16.75610859]
[1770527602554,11.1920375,2086.6,2085.9,5.61702818]
[1770527603149,11.1920375,2086.6,2086.0,5.61702818]
[1770527603350,11.19540031,2086.6,2086.0,5.61702818]
[1770527604759,11.19540031,2086.6,2086.0,5.74197906]
[1770527609159,11.19540031,2086.6,2086.0,11.44625153]
[1770527609562,11.19540031,2086.6,2086.1,9.94486308]
[1770527610062,11.19540031,2086.6,2086.1,4.28657982]
[1770527610262,11.19540031,2086.6,2086.1,9.85107]
[1770527610856,11.19540031,2086.6,2086.1,5.56449018]
[1770527611564,11.19540031,2086.6,2086.0,9.85107]
[1770527612357,11.19540031,2086.6,2086.0,15.55534247]
[1770527612556,11.19540031,2086.6,2086.0,9.85107]
[1770527615465,11.19540031,2086.6,2086.1,9.90284028]
[1770527617766,11.19540031,2086.6,2086.1,4.28657982]
[1770527617962,11.19540031,2086.6,2086.0,4.28657982]
[1770527625482,10.63260963,2086.5,2086.1,5.63701405]
[1770527627282,10.63260963,2086.5,2086.1,9.92359387]
[1770527629076,10.63260963,2086.9,2086.3,5.56690354]
[1770527629276,10.63260963,2086.9,2086.2,9.85348336]
[1770527629883,10.63260963,2086.9,2086.3,5.59421493]
[1770527630086,10.63700133,2086.9,2086.4,5.59421493]
[1770527630580,10.63700133,2086.9,2086.3,9.88079475]
[1770527631283,10.63700133,2086.9,2086.3,9.99085229]
[1770527631673,10.63700133,2086.9,2086.3,4.28657982]
[1770527635083,10.63700133,2086.9,2086.2,5.70427247]
[1770527635278,10.63700133,2086.9,2086.1,5.70427247]
[1770527636487,10.63700133,2086.9,2086.1,15.58624566]
[1770527638984,10.63700133,2086.9,2086.2,9.84347182]
[1770527639188,10.63700133,2086.9,2086.3,2.85907024]
[1770527639887,10.63700133,2086.9,2086.3,12.71052815]
[1770527640187,10.63700133,2086.9,2086.4,2.85907024]
[1770527640387,10.63700133,2086.9,2086.3,12.71052815]
[1770527640588,10.63700133,2086.9,2086.4,12.71052815]
[1770527641591,10.63700133,2086.9,2086.4,2.85907024]
[1770527641890,10.63700133,2086.9,2086.3,2.85907024]
[1770527644692,10.63700133,2086.9,2086.3,12.5689107]
[1770527644884,10.63700133,2086.9,2086.4,12.5689107]
[1770527645084,10.63700133,2086.9,2086.4,2.85907024]
[1770527646687,10.63700133,2086.9,2086.4,12.4777426]
[1770527647991,10.63700133,2086.9,2086.5,9.68655569]
[1770527648188,10.63700133,2086.9,2086.4,2.85907024]
[1770527648189,10.63700133,2086.9,2086.6,12.54562593]
[1770527648693,10.63700133,2086.9,2086.6,2.85907024]
[1770527649291,10.63700133,2086.9,2086.5,12.54562593]
[1770527649898,8.0494432,2086.9,2086.7,2.85907024]
[1770527650394,8.0494432,2086.9,2086.6,2.85907024]
[1770527657896,8.0494432,2086.9,2086.6,14.21878164]
[1770527658096,8.0494432,2086.9,2086.6,2.85907024]
[1770527658396,52.97981617,2087.7,2086.7,11.3597114]
[1770527658604,7.17004822,2087.9,2087.2,11.3597114]
[1770527659002,7.17004822,2087.9,2087.3,11.3597114]
[1770527659400,7.17590596,2087.9,2087.3,11.36588216]
[1770527662194,7.17590596,2087.9,2087.3,0.00617076]
[1770527662502,7.17590596,2087.9,2087.0,14.21878164]
[1770527662699,7.17590596,2087.9,2087.1,11.3597114]
[1770527663296,7.17590596,2087.9,2087.1,11.36499618]
[1770527670701,7.17590596,2087.9,2087.1,0.00528478]
[1770527671008,7.17590596,2087.9,2086.7,5.70427247]
[1770527671009,11.01104822,2087.8,2086.7,11.3597114]
[1770527671502,11.01104822,2087.7,2086.7,11.3597114]
[1770527671900,11.01104822,2087.7,2086.7,11.36456376]
[1770527672608,11.01104822,2087.7,2086.7,0.00485236]
[1770527673808,11.01104822,2087.7,2086.7,11.36456376]
[1770527674810,11.01104822,2087.7,2086.7,0.00485236]
[1770527675306,11.01104822,2087.7,2086.7,11.36456376]
[1770527679403,11.01104822,2087.7,2086.8,10.89807065]
[1770527691314,11.01104822,2087.7,2086.9,10.89807065]
[1770527694919,11.01104822,2087.7,2086.8,2.85907024]
[1770527695119,11.10852901,2087.6,2086.7,13.76199325]
[1770527695317,11.10852901,2087.6,2086.7,18.0247073]
[1770527696017,11.10852901,2087.6,2086.7,13.76199325]
[1770527697321,11.10852901,2087.6,2086.7,18.0247073]
[1770527697521,11.10852901,2087.6,2086.8,10.89807065]
[1770527698219,11.10852901,2087.5,2086.8,13.75714089]
[1770527699123,11.10852901,2087.5,2086.9,10.89807065]
[1770527704429,11.10852901,2087.5,2086.9,13.75607053]
[1770527706929,42.97865581,2087.6,2087.0,10.96638839]
[1770527707230,8.63187615,2088.0,2087.0,10.96638839]
[1770527707231,11.63572537,2088.4,2087.4,8.62319053]
[1770527707431,29.46047511,2088.3,2087.9,2.85079249]
[1770527707618,11.63572537,2088.3,2088.0,4.95017093]
[1770527707823,11.63572537,2088.3,2087.9,2.85079249]
[1770527708019,11.63572537,2088.3,2088.0,4.94313328]
[1770527708219,29.46533311,2088.3,2088.0,2.85079249]
[1770527709028,29.46533311,2088.3,2087.9,2.85079249]
[1770527709029,11.63572537,2088.2,2087.9,2.85079249]
[1770527709235,11.63572537,2088.2,2087.9,1.90679249]
[1770527710231,11.63572537,2088.2,2087.7,4.27618874]
[1770527710432,11.45047676,2088.0,2087.8,5.18456895]
[1770527710634,11.45047676,2088.0,2087.9,5.18456895]
[1770527711229,11.45047676,2087.9,2087.7,4.27618874]
[1770527711427,11.45047676,2087.9,2087.8,5.18234826]
[1770527713735,11.45789264,2087.8,2087.5,4.62563058]
[1770527714230,11.45789264,2087.8,2087.5,0.34944184]
[1770527716447,11.51786679,2088.2,2087.5,0.34944184]
[1770527716640,11.51786679,2088.1,2087.5,0.34944184]
[1770527716834,11.51786679,2088.1,2087.6,0.22949355]
[1770527717041,11.51786679,2088.1,2087.8,4.50568229]
[1770527717237,11.04586679,2088.2,2087.8,0.22949355]
[1770527717442,28.87061653,2088.2,2087.8,4.50568229]
[1770527717743,28.87061653,2088.2,2087.9,1.17349355]
[1770527719548,28.87061653,2088.2,2087.8,5.45074457]
[1770527719747,11.04533565,2088.1,2087.8,5.45074457]
[1770527720449,28.87008539,2088.1,2087.8,5.45074457]
[1770527721741,17.82474974,2088.1,2087.8,5.45074457]
[1770527721948,17.82474974,2088.1,2087.9,1.17386652]
[1770527722247,17.82474974,2088.1,2087.8,4.27618874]
[1770527722248,11.0456803,2088.2,2087.8,5.45005526]
[1770527722446,17.82474974,2088.2,2087.9,1.17386652]
[1770527722648,15.23719161,2088.2,2087.9,1.17386652]
[1770527723952,11.0505383,2088.3,2087.9,1.17386652]
[1770527724258,26.28772991,2088.3,2087.9,1.17386652]
[1770527724552,0.004858,2088.3,2087.9,1.17386652]
[1770527724752,11.03657855,2088.7,2088.0,5.46340077]
[1770527724957,11.03900755,2088.4,2088.0,4.27618874]
[1770527725757,11.04316585,2088.4,2088.0,9.36711551]
[1770527726054,11.04316585,2088.4,2088.0,10.55432754]
[1770527726556,11.00712503,2088.3,2088.0,10.55432754]
[1770527727753,26.24847494,2088.4,2088.0,10.55432754]
[1770527728257,26.24847494,2088.4,2088.1,5.09092677]
[1770527728459,11.0385976,2088.3,2088.0,5.46340077]
[1770527728759,11.0385976,2088.3,2088.0,10.53967433]
[1770527729156,11.0385976,2088.3,2088.0,5.07627356]
[1770527729355,11.0385976,2088.1,2088.0,4.13227356]
[1770527729558,25.86948524,2088.2,2087.8,4.7822315]
[1770527729758,25.86948524,2088.2,2087.9,4.87942709]
[1770527730756,25.86948524,2088.2,2087.7,5.70158499]
[1770527730757,10.63229363,2088.1,2087.8,5.0313936]
[1770527731361,10.63229363,2088.1,2087.7,10.73297859]
[1770527731660,10.63229363,2088.1,2087.8,5.0313936]
[1770527732261,10.63229363,2088.1,2087.8,10.73297859]
[1770527732563,15.23719161,2088.1,2087.9,5.00944382]
[1770527732759,10.63229363,2088.2,2087.9,5.00944382]
[1770527732953,15.23719161,2088.2,2087.9,5.00944382]
[1770527733963,0.0041583,2088.4,2087.9,5.00944382]
[1770527734163,16.9325469,2090.5,2088.1,4.98406905]